fUSD/lending_fUSD_20240814
["ID","MTS","AMOUNT","RATE_DAILY","PERIOD"]
[334825603,1723605056313,-500.0,0.00013972,2]
[334825604,1723605056323,-500.0,0.00013972,2]
[334825605,1723605056334,-500.0,0.00013972,2]
[334825606,1723605056344,-557.05,0.00013972,2]
[334825607,1723605056353,-875.47,0.00013972,2]
[334825608,1723605056363,-438.28850313,0.00013972,2]
[334825609,1723605056374,-500.0,0.00013972,2]
[334825610,1723605056384,-500.0,0.00013972,2]
[334825611,1723605056394,-500.0,0.00013972,2]
[334825612,1723605056404,-500.0,0.00013972,2]
[334825613,1723605056414,-1181.63,0.00013972,2]
[334825614,1723605056424,-500.0,0.00013972,2]
[334825615,1723605056434,-1030.34,0.00013972,2]
[334825616,1723605056443,-2181.86,0.00013972,2]
[334825617,1723605056453,-512.49121742,0.00013972,2]
[334825618,1723605056462,-2025.74,0.00013972,2]
[334825619,1723605056472,-500.0,0.00013972,2]
[334825620,1723605056482,-1413.32,0.00013972,2]
[334825621,1723605056492,-910.05,0.00013972,2]
[334825622,1723605056502,-500.0,0.00013972,2]
[334825623,1723605056512,-513.22647589,0.00013972,2]
[334825624,1723605056521,-500.0,0.00013972,2]
[334825625,1723605056531,-500.0,0.00013972,2]
[334825626,1723605056541,-529.76,0.00013972,2]
[334825627,1723605056551,-503.14,0.00013972,2]
[334825628,1723605056561,-510.64,0.00013972,2]
[334825629,1723605056571,-1733.06,0.00013972,2]
[334825630,1723605056581,-868.31,0.00013972,2]
[334825631,1723605056590,-2269.46,0.00013972,2]
[334825632,1723605056600,-522.67,0.00013972,2]
[334825633,1723605056610,-500.0,0.00013972,2]
[334825634,1723605056620,-571.03318229,0.00013972,2]
[334825635,1723605056630,-881.51,0.00013972,2]
[334825636,1723605056640,-1396.78,0.00013972,2]
[334825637,1723605056650,-706.73,0.00013972,2]
[334825638,1723605056660,-772.89,0.00013972,2]
[334825639,1723605056670,-500.0,0.00013972,2]
[334825640,1723605056680,-500.0,0.00013972,2]
[334825641,1723605056690,-2133.37,0.00013972,2]
[334825642,1723605056699,-500.0,0.00013972,2]
[334825643,1723605056709,-500.0,0.00013972,2]
[334825644,1723605056719,-500.0,0.00013972,2]
[334825645,1723605056729,-500.0,0.00013972,2]
[334825646,1723605056739,-1205.91,0.00013972,2]
[334825647,1723605056748,-500.0,0.00013972,2]
[334825648,1723605056758,-929.46,0.00013972,2]
[334825649,1723605056767,-500.0,0.00013972,2]
[334825650,1723605056777,-500.0,0.00013972,2]
[334825651,1723605056787,-613.02,0.00013972,2]
[334825652,1723605056797,-500.0,0.00013972,2]
[334825653,1723605056806,-503.35052473,0.00013972,2]
[334825654,1723605056816,-2071.92,0.00013972,2]
[334825655,1723605056826,-849.35,0.00013972,2]
[334825656,1723605056835,-500.0,0.00013972,2]
[334825657,1723605056845,-500.0,0.00013972,2]
[334825658,1723605056855,-324.03547068,0.00013972,2]
[334825659,1723605056864,-1149.19,0.00013972,2]
[334825660,1723605056874,-519.43,0.00013972,2]
[334825661,1723605056884,-816.63,0.00013972,2]
[334825662,1723605056893,-1338.21,0.00013972,2]
[334825663,1723605056903,-748.99,0.00013972,2]
[334825664,1723605056913,-500.0,0.00013972,2]
[334825665,1723605056923,-500.0,0.00013972,2]
[334825666,1723605056933,-500.0,0.00013972,2]
[334825667,1723605056943,-699.54,0.00013972,2]
[334825668,1723605056954,-1022.75,0.00013972,2]
[334825669,1723605056964,-523.86,0.00013972,2]
[334825670,1723605056974,-500.0,0.00013972,2]
[334825671,1723605056983,-612.84,0.00013972,2]
[334825672,1723605056993,-500.0,0.00013972,2]
[334825673,1723605057002,-500.0,0.00013972,2]
[334825674,1723605057011,-500.0,0.00013972,2]
[334825675,1723605057021,-500.0,0.00013972,2]
[334825676,1723605057032,-500.0,0.00013972,2]
[334825677,1723605057042,-1197.98,0.00013972,2]
[334825678,1723605057052,-404.19038445,0.00013972,2]
[334825679,1723605057062,-919.6,0.00013972,2]
[334825680,1723605057071,-1287.56,0.00013972,2]
[334825681,1723605057081,-500.0,0.00013972,2]
[334825682,1723605057091,-503.29,0.00013972,2]
[334825683,1723605057101,-500.0,0.00013972,2]
[334825684,1723605057111,-500.0,0.00013972,2]
[334825685,1723605057120,-1236.66,0.00013972,2]
[334825686,1723605057130,-1706.6,0.00013972,2]
[334825687,1723605057140,-500.0,0.00013972,2]
[334825688,1723605057149,-727.3,0.00013972,2]
[334825689,1723605057159,-500.0,0.00013972,2]
[334825690,1723605057168,-500.0,0.00013972,2]
[334825691,1723605057178,-500.0,0.00013972,2]
[334825692,1723605057187,-536.46,0.00013972,2]
[334825693,1723605057198,-500.0,0.00013972,2]
[334825694,1723605057209,-500.0,0.00013972,2]
[334825695,1723605057219,-721.37,0.00013972,2]
[334825696,1723605057228,-2182.15,0.00013972,2]
[334825697,1723605057239,-500.0,0.00013972,2]
[334825698,1723605057248,-1786.37,0.00013972,2]
[334825699,1723605057258,-2427.03,0.00013972,2]
[334825700,1723605057268,-680.94,0.00013972,2]
[334825701,1723605057277,-500.0,0.00013972,2]
[334825702,1723605057287,-500.0,0.00013972,2]
[334825703,1723605057296,-771.59,0.00013972,2]
[334825704,1723605057306,-1367.74,0.00013972,2]
[334825705,1723605057316,-500.0,0.00013972,2]
[334825706,1723605057328,-400.02731389,0.00013972,2]
[334825707,1723605057339,-1130.15,0.00013972,2]
[334825708,1723605057348,-1950.59,0.00013972,2]
[334825709,1723605057358,-750.13,0.00013972,2]
[334825710,1723605057369,-500.0,0.00013972,2]
[334825711,1723605057379,-500.0,0.00013972,2]
[334825712,1723605057388,-1812.05,0.00013972,2]
[334825713,1723605057398,-500.0,0.00013972,2]
[334825714,1723605057410,-476.56727924,0.00013972,2]
[334825715,1723605057420,-576.07,0.00013972,2]
[334825716,1723605057429,-1411.86,0.00013972,2]
[334825717,1723605057439,-500.0,0.00013972,2]
[334825718,1723605057448,-672.92,0.00013972,2]
[334825719,1723605057458,-500.0,0.00013972,2]
[334825720,1723605057468,-2545.33,0.00013972,2]
[334825721,1723605057477,-500.0,0.00013972,2]
[334825722,1723605057487,-500.0,0.00013972,2]
[334825723,1723605057497,-500.0,0.00013972,2]
[334825724,1723605057506,-500.0,0.00013972,2]
[334825725,1723605057516,-500.0,0.00013972,2]
[334825726,1723605057526,-500.0,0.00013972,2]
[334825727,1723605057535,-541.3,0.00013972,2]
[334825728,1723605057545,-500.0,0.00013972,2]
[334825729,1723605057554,-872.09,0.00013972,2]
[334825730,1723605057564,-6288.73,0.00013972,2]
[334825731,1723605057574,-500.0,0.00013972,2]
[334825732,1723605057583,-500.0,0.00013972,2]
[334825733,1723605057593,-574.66915286,0.00013972,2]
[334825734,1723605057602,-500.0,0.00013972,2]
[334825735,1723605057612,-500.0,0.00013972,2]
[334825736,1723605057621,-500.0,0.00013972,2]
[334825737,1723605057631,-1035.1,0.00013972,2]
[334825738,1723605057640,-500.0,0.00013972,2]
[334825739,1723605057650,-1340.06,0.00013972,2]
[334825740,1723605057659,-500.0,0.00013972,2]
[334825741,1723605057669,-500.0,0.00013972,2]
[334825742,1723605057678,-1609.25,0.00013972,2]
[334825743,1723605057688,-264.462511,0.00013972,2]
[334825744,1723605057698,-2362.09,0.00013972,2]
[334825745,1723605057707,-500.0,0.00013972,2]
[334825746,1723605057716,-500.0,0.00013972,2]
[334825747,1723605057726,-500.0,0.00013972,2]
[334825748,1723605057735,-1034.45,0.00013972,2]
[334825749,1723605057745,-902.63,0.00013972,2]
[334825750,1723605057755,-557.88,0.00013972,2]
[334825751,1723605057765,-500.0,0.00013972,2]
[334825752,1723605057775,-943.38,0.00013972,2]
[334825753,1723605057784,-3295.82,0.00013972,2]
[334825754,1723605057794,-500.0,0.00013972,2]
[334825755,1723605057804,-995.76,0.00013972,2]
[334825756,1723605057813,-500.0,0.00013972,2]
[334825757,1723605057823,-500.0,0.00013972,2]
[334825758,1723605057832,-500.0,0.00013972,2]
[334825759,1723605057842,-500.0,0.00013972,2]
[334825760,1723605057851,-756.18,0.00013972,2]
[334825761,1723605057861,-681.83,0.00013972,2]
[334825762,1723605057870,-500.0,0.00013972,2]
[334825763,1723605057881,-1346.5,0.00013972,2]
[334825764,1723605057890,-500.0,0.00013972,2]
[334825765,1723605057899,-1093.21,0.00013972,2]
[334825766,1723605057909,-1173.15,0.00013972,2]
[334825767,1723605057917,-1976.94,0.00013972,2]
[334825768,1723605057927,-675.4,0.00013972,2]
[334825769,1723605057936,-500.0,0.00013972,2]
[334825770,1723605057946,-500.0,0.00013972,2]
[334825771,1723605057955,-533.76,0.00013972,2]
[334825772,1723605057964,-817.86,0.00013972,2]
[334825773,1723605057974,-1591.01,0.00013972,2]
[334825774,1723605057983,-736.58,0.00013972,2]
[334825775,1723605057993,-500.0,0.00013972,2]
[334825776,1723605058002,-500.0,0.00013972,2]
[334825777,1723605058011,-1823.18,0.00013972,2]
[334825778,1723605058021,-500.0,0.00013972,2]
[334825779,1723605058030,-1560.86,0.00013972,2]
[334825780,1723605058040,-260.67344817,0.00013972,2]
[334825781,1723605058049,-500.0,0.00013972,2]
[334825782,1723605058058,-500.0,0.00013972,2]
[334825783,1723605058068,-391.32958176,0.00013972,2]
[334825784,1723605058078,-703.88,0.00013972,2]
[334825785,1723605058088,-868.55,0.00013972,2]
[334825786,1723605058097,-549.74,0.00013972,2]
[334825787,1723605058106,-581.4581716,0.00013972,2]
[334825788,1723605058116,-500.0,0.00013972,2]
[334825789,1723605058125,-873.62,0.00013972,2]
[334825790,1723605058442,-500.0,0.00013972,2]
[334825791,1723605058452,-1218.76,0.00013972,2]
[334825792,1723605058461,-948.65,0.00013972,2]
[334825793,1723605058471,-530.56,0.00013972,2]
[334825794,1723605058481,-500.0,0.00013972,2]
[334825795,1723605058490,-1962.68,0.00013972,2]
[334825796,1723605058500,-500.0,0.00013972,2]
[334825797,1723605058510,-500.0,0.00013972,2]
[334825798,1723605058519,-1100.79,0.00013972,2]
[334825799,1723605058529,-3761.99,0.00013972,2]
[334825800,1723605058539,-519.9,0.00013972,2]
[334825801,1723605058548,-1091.85,0.00013972,2]
[334825802,1723605058558,-500.0,0.00013972,2]
[334825803,1723605058568,-500.0,0.00013972,2]
[334825804,1723605058578,-1899.15,0.00013972,2]
[334825805,1723605058588,-591.0,0.00013972,2]
[334825806,1723605058598,-500.0,0.00013972,2]
[334825807,1723605058608,-2902.42,0.00013972,2]
[334825808,1723605058618,-681.58,0.00013972,2]
[334825809,1723605058628,-979.62,0.00013972,2]
[334825810,1723605058637,-756.88,0.00013972,2]
[334825811,1723605058647,-500.0,0.00013972,2]
[334825812,1723605058657,-522.04,0.00013972,2]
[334825813,1723605058667,-500.0,0.00013972,2]
[334825814,1723605058676,-1101.29,0.00013972,2]
[334825815,1723605058686,-1108.67,0.00013972,2]
[334825816,1723605058696,-500.0,0.00013972,2]
[334825817,1723605058706,-500.0,0.00013972,2]
[334825818,1723605058716,-1192.85,0.00013972,2]
[334825819,1723605058726,-500.0,0.00013972,2]
[334825820,1723605058735,-1671.63,0.00013972,2]
[334825821,1723605058746,-738.15,0.00013972,2]
[334825822,1723605058756,-500.85993098,0.00013972,2]
[334825823,1723605058766,-4757.69,0.00013972,2]
[334825824,1723605058777,-817.28,0.00013972,2]
[334825825,1723605058787,-500.0,0.00013972,2]
[334825826,1723605058799,-500.0,0.00013972,2]
[334825827,1723605058809,-1634.26,0.00013972,2]
[334825828,1723605058819,-1376.93,0.00013972,2]
[334825829,1723605058829,-500.0,0.00013972,2]
[334825830,1723605058840,-500.0,0.00013972,2]
[334825831,1723605058851,-500.0,0.00013972,2]
[334825832,1723605058860,-1110.82,0.00013972,2]
[334825833,1723605058870,-18059.26,0.00013972,2]
[334825834,1723605058880,-500.0,0.00013972,2]
[334825835,1723605058891,-2339.81,0.00013972,2]
[334825836,1723605058900,-815.45,0.00013972,2]
[334825837,1723605058910,-1022.58,0.00013972,2]
[334825838,1723605058920,-779.0,0.00013972,2]
[334825839,1723605058929,-1739.76,0.00013972,2]
[334825840,1723605058939,-500.0,0.00013972,2]
[334825841,1723605058948,-500.0,0.00013972,2]
[334825842,1723605058958,-500.0,0.00013972,2]
[334825843,1723605058967,-716.15,0.00013972,2]
[334825844,1723605058977,-500.0,0.00013972,2]
[334825845,1723605058987,-824.5,0.00013972,2]
[334825846,1723605058996,-611.72,0.00013972,2]
[334825847,1723605059005,-500.0,0.00013972,2]
[334825848,1723605059015,-573.09,0.00013972,2]
[334825849,1723605059024,-500.0,0.00013972,2]
[334825850,1723605059034,-564.02,0.00013972,2]
[334825851,1723605059044,-500.0,0.00013972,2]
[334825852,1723605059054,-1688.94,0.00013972,2]
[334825853,1723605059064,-500.0,0.00013972,2]
[334825854,1723605059074,-754.52,0.00013972,2]
[334825855,1723605059083,-500.0,0.00013972,2]
[334825856,1723605059093,-500.0,0.00013972,2]
[334825857,1723605059103,-2125.28,0.00013972,2]
[334825858,1723605059113,-862.91,0.00013972,2]
[334825859,1723605059123,-604.7959541,0.00013972,2]
[334825860,1723605059132,-1627.71,0.00013972,2]
[334825861,1723605059142,-726.59,0.00013972,2]
[334825862,1723605059151,-500.0,0.00013972,2]
[334825863,1723605059161,-5975.91,0.00013972,2]
[334825864,1723605059171,-500.0,0.00013972,2]
[334825865,1723605059180,-1414.92,0.00013972,2]
[334825866,1723605059192,-592.73,0.00013972,2]
[334825867,1723605059203,-902.13,0.00013972,2]
[334825868,1723605059214,-2088.05,0.00013972,2]
[334825869,1723605059224,-5374.81,0.00013972,2]
[334825870,1723605059234,-1387.45,0.00013972,2]
[334825871,1723605059244,-768.36,0.00013972,2]
[334825872,1723605059253,-3876.74,0.00013972,2]
[334825873,1723605059263,-500.0,0.00013972,2]
[334825874,1723605059272,-500.0,0.00013972,2]
[334825875,1723605059282,-500.0,0.00013972,2]
[334825876,1723605059291,-1245.3,0.00013972,2]
[334825877,1723605059301,-500.0,0.00013972,2]
[334825878,1723605059310,-618.4,0.00013972,2]
[334825879,1723605059320,-500.0,0.00013972,2]
[334825880,1723605059332,-2815.43,0.00013972,2]
[334825881,1723605059342,-3826.76,0.00013972,2]
[334825882,1723605059352,-500.0,0.00013972,2]
[334825883,1723605059362,-807.19,0.00013972,2]
[334825884,1723605059372,-512.97426263,0.00013972,2]
[334825885,1723605059381,-2271.26,0.00013972,2]
[334825886,1723605059392,-855.92,0.00013972,2]
[334825887,1723605059402,-7857.05,0.00013972,2]
[334825888,1723605059412,-1088.18,0.00013972,2]
[334825889,1723605059421,-500.0,0.00013972,2]
[334825890,1723605059431,-752.58,0.00013972,2]
[334825891,1723605059440,-500.0,0.00013972,2]
[334825892,1723605059450,-500.0,0.00013972,2]
[334825893,1723605059459,-3025.79,0.00013972,2]
[334825894,1723605059469,-2164.19,0.00013972,2]
[334825895,1723605059478,-3869.55,0.00013972,2]
[334825896,1723605059488,-500.0,0.00013972,2]
[334825897,1723605059497,-892.24,0.00013972,2]
[334825898,1723605059507,-500.0,0.00013972,2]
[334825899,1723605059517,-500.0,0.00013972,2]
[334825900,1723605059527,-662.61,0.00013972,2]
[334825901,1723605059537,-916.14,0.00013972,2]
[334825902,1723605059547,-795.16,0.00013972,2]
[334825903,1723605059556,-26609.07,0.00013972,2]
[334825904,1723605059566,-500.0,0.00013972,2]
[334825905,1723605059576,-500.0,0.00013972,2]
[334825906,1723605059586,-3398.55,0.00013972,2]
[334825907,1723605059595,-22218.98,0.00013972,2]
[334825908,1723605059605,-500.0,0.00013972,2]
[334825909,1723605059615,-2542.25,0.00013972,2]
[334825910,1723605059624,-1245.59,0.00013972,2]
[334825911,1723605059634,-500.0,0.00013972,2]
[334825912,1723605059643,-500.0,0.00013972,2]
[334825913,1723605059653,-1016.07,0.00013972,2]
[334825914,1723605059662,-2255.75,0.00013972,2]
[334825915,1723605059673,-500.0,0.00013972,2]
[334825916,1723605059682,-500.0,0.00013972,2]
[334825917,1723605059691,-1410.58,0.00013972,2]
[334825918,1723605059701,-500.0,0.00013972,2]
[334825919,1723605059710,-941.19,0.00013972,2]
[334825920,1723605059720,-272.57473421,0.00013972,2]
[334825921,1723605059731,-8200.38,0.00013972,2]
[334825922,1723605059740,-500.0,0.00013972,2]
[334825923,1723605059750,-500.0,0.00013972,2]
[334825924,1723605059760,-5134.83,0.00013972,2]
[334825925,1723605059770,-500.0,0.00013972,2]
[334825926,1723605059779,-500.0,0.00013972,2]
[334825927,1723605059789,-1475.56,0.00013972,2]
[334825928,1723605059798,-1590.03,0.00013972,2]
[334825929,1723605059808,-500.0,0.00013972,2]
[334825930,1723605059817,-500.0,0.00013972,2]
[334825931,1723605059827,-500.0,0.00013972,2]
[334825932,1723605059836,-2005.17,0.00013972,2]
[334825933,1723605059846,-500.0,0.00013972,2]
[334825934,1723605059855,-500.0,0.00013972,2]
[334825935,1723605059865,-500.0,0.00013972,2]
[334825936,1723605059874,-598.02,0.00013972,2]
[334825937,1723605059884,-12984.39,0.00013972,2]
[334825938,1723605059893,-7951.86,0.00013972,2]
[334825939,1723605059903,-1032.44,0.00013972,2]
[334825940,1723605059912,-739.61,0.00013972,2]
[334825941,1723605059921,-500.0,0.00013972,2]
[334825942,1723605059931,-500.0,0.00013972,2]
[334825943,1723605059940,-2078.47,0.00013972,2]
[334825944,1723605059950,-500.0,0.00013972,2]
[334825945,1723605059959,-3476.41,0.00013972,2]
[334825946,1723605059969,-39703.17,0.00013972,2]
[334825947,1723605059978,-18895.17,0.00013972,2]
[334825948,1723605059987,-2008.56,0.00013972,2]
[334825949,1723605059997,-500.0,0.00013972,2]
[334825950,1723605060006,-500.0,0.00013972,2]
[334825951,1723605060016,-500.0,0.00013972,2]
[334825952,1723605060025,-960.08,0.00013972,2]
[334825953,1723605060034,-16246.9,0.00013972,2]
[334825954,1723605060044,-500.0,0.00013972,2]
[334825955,1723605060053,-23755.04,0.00013972,2]
[334825956,1723605060063,-500.0,0.00013972,2]
[334825957,1723605060072,-1931.43,0.00013972,2]
[334825958,1723605060082,-1617.8,0.00013972,2]
[334825959,1723605060091,-596.55,0.00013972,2]
[334825960,1723605060101,-1313.03,0.00013972,2]
[334825961,1723605060110,-500.0,0.00013972,2]
[334825962,1723605060119,-7013.22,0.00013972,2]
[334825963,1723605060129,-5544.75,0.00013972,2]
[334825964,1723605060138,-500.0,0.00013972,2]
[334825965,1723605060147,-500.0,0.00013972,2]
[334825966,1723605060157,-502.28,0.00013972,2]
[334825967,1723605060166,-500.0,0.00013972,2]
[334825968,1723605060175,-6693.76822604,0.00013972,2]
[334825969,1723605060835,-6661.97177396,0.00013972,2]
[334825970,1723605060845,-560.1,0.00013972,2]
[334825971,1723605060855,-500.0,0.00013972,2]
[334825972,1723605060865,-500.0,0.00013972,2]
[334825973,1723605060874,-500.0,0.00013972,2]
[334825974,1723605060883,-2441.9,0.00013972,2]
[334825975,1723605060892,-1240.21,0.00013972,2]
[334825976,1723605060901,-2489.4,0.00013972,2]
[334825977,1723605060910,-1135.86,0.00013972,2]
[334825978,1723605060919,-500.0,0.00013972,2]
[334825979,1723605060929,-500.0,0.00013972,2]
[334825980,1723605060938,-500.0,0.00013972,2]
[334825981,1723605060947,-371.14291553,0.00013972,2]
[334825982,1723605060958,-500.0,0.00013972,2]
[334825983,1723605060968,-4723.94,0.00013972,2]
[334825984,1723605060977,-500.0,0.00013972,2]
[334825985,1723605060986,-824.22,0.00013972,2]
[334825986,1723605060995,-4121.71,0.00013972,2]
[334825987,1723605061005,-500.0,0.00013972,2]
[334825988,1723605061015,-500.0,0.00013972,2]
[334825989,1723605061025,-500.0,0.00013972,2]
[334825990,1723605061034,-500.0,0.00013972,2]
[334825991,1723605061043,-500.0,0.00013972,2]
[334825992,1723605061052,-1725.18,0.00013972,2]
[334825993,1723605061062,-500.0,0.00013972,2]
[334825994,1723605061071,-500.0,0.00013972,2]
[334825995,1723605061080,-500.0,0.00013972,2]
[334825996,1723605061090,-500.0,0.00013972,2]
[334825997,1723605061099,-500.0,0.00013972,2]
[334825998,1723605061108,-500.0,0.00013972,2]
[334825999,1723605061117,-678.73,0.00013972,2]
[334826000,1723605061126,-500.0,0.00013972,2]
[334826001,1723605061135,-1375.35,0.00013972,2]
[334826002,1723605061145,-500.0,0.00013972,2]
[334826003,1723605061154,-7442.74,0.00013972,2]
[334826004,1723605061163,-990.54,0.00013972,2]
[334826005,1723605061172,-500.0,0.00013972,2]
[334826006,1723605061182,-895.16,0.00013972,2]
[334826007,1723605061191,-3072.29,0.00013972,2]
[334826008,1723605061200,-1429.94,0.00013972,2]
[334826009,1723605061209,-14963.69,0.00013972,2]
[334826010,1723605061219,-500.0,0.00013972,2]
[334826011,1723605061229,-500.0,0.00013972,2]
[334826012,1723605061239,-962.78,0.00013972,2]
[334826013,1723605061248,-500.0,0.00013972,2]
[334826014,1723605061257,-5404.54,0.00013972,2]
[334826015,1723605061266,-500.0,0.00013972,2]
[334826016,1723605061275,-500.0,0.00013972,2]
[334826017,1723605061284,-500.0,0.00013972,2]
[334826018,1723605061293,-1416.37,0.00013972,2]
[334826019,1723605061303,-500.0,0.00013972,2]
[334826020,1723605061312,-500.0,0.00013972,2]
[334826021,1723605061322,-996.29,0.00013972,2]
[334826022,1723605061335,-2553.52,0.00013972,2]
[334826023,1723605061344,-862.29,0.00013972,2]
[334826024,1723605061354,-1865.83,0.00013972,2]
[334826025,1723605061367,-708.61,0.00013972,2]
[334826026,1723605061381,-500.0,0.00013972,2]
[334826027,1723605061394,-1066.91,0.00013972,2]
[334826028,1723605061408,-500.0,0.00013972,2]
[334826029,1723605061420,-500.0,0.00013972,2]
[334826030,1723605061431,-10401.13,0.00013972,2]
[334826031,1723605061444,-4853.34,0.00013972,2]
[334826032,1723605061457,-2646.9,0.00013972,2]
[334826033,1723605061469,-500.0,0.00013972,2]
[334826034,1723605061482,-500.0,0.00013972,2]
[334826035,1723605061494,-500.0,0.00013972,2]
[334826036,1723605061506,-500.0,0.00013972,2]
[334826037,1723605061519,-500.0,0.00013972,2]
[334826038,1723605061532,-500.0,0.00013972,2]
[334826039,1723605061544,-500.0,0.00013972,2]
[334826040,1723605061556,-8054.04,0.00013972,2]
[334826041,1723605061569,-1513.43,0.00013972,2]
[334826042,1723605061581,-3569.57,0.00013972,2]
[334826043,1723605061595,-4502.45,0.00013972,2]
[334826044,1723605061608,-500.0,0.00013972,2]
[334826045,1723605061620,-1672.01,0.00013972,2]
[334826046,1723605061632,-1382.21,0.00013972,2]
[334826047,1723605061643,-500.0,0.00013972,2]
[334826048,1723605061653,-500.0,0.00013972,2]
[334826049,1723605061665,-500.0,0.00013972,2]
[334826050,1723605061677,-30978.45,0.00013972,2]
[334826051,1723605061690,-808.08,0.00013972,2]
[334826052,1723605061702,-1117.17,0.00013972,2]
[334826053,1723605061715,-500.0,0.00013972,2]
[334826054,1723605061728,-1667.3,0.00013972,2]
[334826055,1723605061741,-2412.04,0.00013972,2]
[334826056,1723605061755,-500.0,0.00013972,2]
[334826057,1723605061769,-9957.53,0.00013972,2]
[334826058,1723605061780,-541.43,0.00013972,2]
[334826059,1723605061790,-197.55025031,0.00013972,2]
[334826060,1723605061801,-1421.86,0.00013972,2]
[334826061,1723605061812,-3315.49,0.00013972,2]
[334826062,1723605061824,-1350.79,0.00013972,2]
[334826063,1723605061836,-500.0,0.00013972,2]
[334826064,1723605061850,-500.0,0.00013972,2]
[334826065,1723605061861,-5365.68,0.00013972,2]
[334826066,1723605061871,-500.0,0.00013972,2]
[334826067,1723605061885,-1559.83,0.00013972,2]
[334826068,1723605061898,-500.0,0.00013972,2]
[334826069,1723605061912,-5871.12,0.00013972,2]
[334826070,1723605061933,-500.0,0.00013972,2]
[334826071,1723605061945,-1637.79,0.00013972,2]
[334826072,1723605061956,-500.0,0.00013972,2]
[334826073,1723605061967,-1965.79,0.00013972,2]
[334826074,1723605061979,-500.0,0.00013972,2]
[334826075,1723605061990,-1378.04,0.00013972,2]
[334826076,1723605062001,-500.0,0.00013972,2]
[334826077,1723605062013,-1616.8,0.00013972,2]
[334826078,1723605062025,-3530.55,0.00013972,2]
[334826079,1723605062036,-1964.9,0.00013972,2]
[334826080,1723605062047,-500.0,0.00013972,2]
[334826081,1723605062059,-500.0,0.00013972,2]
[334826082,1723605062070,-500.0,0.00013972,2]
[334826083,1723605062082,-523.48,0.00013972,2]
[334826084,1723605062095,-980.96,0.00013972,2]
[334826085,1723605062106,-995.8,0.00013972,2]
[334826086,1723605062118,-500.0,0.00013972,2]
[334826087,1723605062130,-1058.49,0.00013972,2]
[334826088,1723605062142,-500.0,0.00013972,2]
[334826089,1723605062154,-500.0,0.00013972,2]
[334826090,1723605062166,-1158.06,0.00013972,2]
[334826091,1723605062178,-500.0,0.00013972,2]
[334826092,1723605062188,-1771.71,0.00013972,2]
[334826093,1723605062199,-2095.59,0.00013972,2]
[334826094,1723605062211,-500.0,0.00013972,2]
[334826095,1723605062222,-500.0,0.00013972,2]
[334826096,1723605062234,-500.0,0.00013972,2]
[334826097,1723605062245,-5450.64,0.00013972,2]
[334826098,1723605062256,-1436.17,0.00013972,2]
[334826099,1723605062267,-2445.12,0.00013972,2]
[334826100,1723605062278,-500.0,0.00013972,2]
[334826101,1723605062290,-500.0,0.00013972,2]
[334826102,1723605062302,-4063.03,0.00013972,2]